[Event "*** Titled Tuesday Blitz"]
[Site "Chess.com"]
[Date "2020.04.28"]
[Round "2"]
[White "DrVitman"]
[Black "Vespasian23"]
[Result "1-0"]
[WhiteElo "2566"]
[BlackElo "2262"]
[TimeControl "180+1"]
[EndTime "10:18:30 PDT"]
[Termination "DrVitman won by checkmate"]

1. e4 {[%clk 0:03:00.9]} 1... c5 {[%clk 0:02:58.8]} 2. Nc3 {[%clk 0:03:00.8]}
2... Nc6 {[%clk 0:02:58.6]} 3. Bb5 {[%clk 0:03:00.9]} 3... d6 {[%clk 0:02:57.1]}
4. Bxc6+ {[%clk 0:02:59.4]} 4... bxc6 {[%clk 0:02:57]} 5. d3 {[%clk 0:02:58.5]}
5... e5 {[%clk 0:02:56.1]} 6. Bd2 {[%clk 0:02:42.4]} 6... Be7 {[%clk 0:02:53]}
7. Nge2 {[%clk 0:02:36.1]} 7... Nf6 {[%clk 0:02:36.5]} 8. O-O {[%clk 0:02:35]}
8... O-O {[%clk 0:02:35.5]} 9. f4 {[%clk 0:02:08.8]} 9... exf4 {[%clk
0:02:25.7]} 10. Bxf4 {[%clk 0:02:02.3]} 10... d5 {[%clk 0:02:21.6]} 11. Ng3
{[%clk 0:01:53.7]} 11... Bg4 {[%clk 0:01:51.9]} 12. Qd2 {[%clk 0:01:47.6]} 12...
Qb6 {[%clk 0:01:36.3]} 13. Rab1 {[%clk 0:01:05.7]} 13... c4+ {[%clk 0:01:24.9]}
14. d4 {[%clk 0:00:58.8]} 14... c5 {[%clk 0:01:10.4]} 15. e5 {[%clk 0:00:18.8]}
15... cxd4 {[%clk 0:00:49.2]} 16. Na4 {[%clk 0:00:18.4]} 16... Qc6 {[%clk
0:00:41.4]} 17. exf6 {[%clk 0:00:18]} 17... Bxf6 {[%clk 0:00:42]} 18. b3 {[%clk
0:00:17.3]} 18... d3 {[%clk 0:00:36.9]} 19. cxd3 {[%clk 0:00:14.8]} 19... c3
{[%clk 0:00:35.6]} 20. Qc2 {[%clk 0:00:13.7]} 20... d4 {[%clk 0:00:35.5]} 21.
Rbe1 {[%clk 0:00:13.4]} 21... Rfe8 {[%clk 0:00:31.6]} 22. Nb2 {[%clk 0:00:11.7]}
22... a5 {[%clk 0:00:25.1]} 23. Nc4 {[%clk 0:00:11.6]} 23... a4 {[%clk 0:00:25]}
24. Nd6 {[%clk 0:00:11.6]} 24... Re6 {[%clk 0:00:20.6]} 25. Rxe6 {[%clk
0:00:10.9]} 25... Bxe6 {[%clk 0:00:19.9]} 26. b4 {[%clk 0:00:08.1]} 26... a3
{[%clk 0:00:19.9]} 27. Re1 {[%clk 0:00:07.5]} 27... Be7 {[%clk 0:00:17.2]} 28.
Nge4 {[%clk 0:00:06.1]} 28... Bd5 {[%clk 0:00:16.2]} 29. b5 {[%clk 0:00:06.1]}
29... Qd7 {[%clk 0:00:15.3]} 30. h3 {[%clk 0:00:03.5]} 30... Bxe4 {[%clk
0:00:14.2]} 31. Nxe4 {[%clk 0:00:04.4]} 31... Qxb5 {[%clk 0:00:14]} 32. Rb1
{[%clk 0:00:05]} 32... Qd7 {[%clk 0:00:13.9]} 33. Qe2 {[%clk 0:00:05.2]} 33...
f5 {[%clk 0:00:13.9]} 34. Ng3 {[%clk 0:00:05.1]} 34... g6 {[%clk 0:00:13.3]} 35.
Be5 {[%clk 0:00:05.2]} 35... Bc5 {[%clk 0:00:13]} 36. Qf2 {[%clk 0:00:05.3]}
36... Re8 {[%clk 0:00:12.9]} 37. Bf4 {[%clk 0:00:05.4]} 37... Re3 {[%clk
0:00:12]} 38. Bxe3 {[%clk 0:00:04.9]} 38... dxe3 {[%clk 0:00:12.6]} 39. Qe2
{[%clk 0:00:05.8]} 39... f4 {[%clk 0:00:13.2]} 40. Nf1 {[%clk 0:00:05.5]} 40...
Ba7 {[%clk 0:00:13.3]} 41. Rc1 {[%clk 0:00:04.5]} 41... Qd4 {[%clk 0:00:12.7]}
42. Kh1 {[%clk 0:00:04.6]} 42... g5 {[%clk 0:00:12.9]} 43. Nh2 {[%clk
0:00:04.8]} 43... h5 {[%clk 0:00:12.6]} 44. Qxh5 {[%clk 0:00:02.8]} 44... Qxd3
{[%clk 0:00:13]} 45. Qxg5+ {[%clk 0:00:03.2]} 45... Kf7 {[%clk 0:00:13.6]} 46.
Qh5+ {[%clk 0:00:02.9]} 46... Ke6 {[%clk 0:00:14]} 47. Qg4+ {[%clk 0:00:03.2]}
47... Ke5 {[%clk 0:00:14.5]} 48. Nf3+ {[%clk 0:00:03.4]} 48... Kd5 {[%clk
0:00:14.4]} 49. Qg5+ {[%clk 0:00:02.9]} 49... Ke4 {[%clk 0:00:14.2]} 50. Qe5#
{[%clk 0:00:03]} 1-0

[Event "*** Titled Tuesday Blitz"]
[Site "Chess.com"]
[Date "2020.04.28"]
[Round "2"]
[White "Pavalamalli"]
[Black "martinique24"]
[Result "1-0"]
[WhiteElo "2253"]
[BlackElo "2430"]
[TimeControl "180+1"]
[EndTime "10:18:30 PDT"]
[Termination "Pavalamalli won on time"]

1. e4 {[%clk 0:03:00.9]} 1... c6 {[%clk 0:02:59.4]} 2. d4 {[%clk 0:03:00.3]}
2... d5 {[%clk 0:02:59.2]} 3. exd5 {[%clk 0:03:00]} 3... cxd5 {[%clk 0:02:57.5]}
4. Bf4 {[%clk 0:03:00]} 4... Nc6 {[%clk 0:02:55.8]} 5. c3 {[%clk 0:02:59.7]}
5... Nf6 {[%clk 0:02:53.8]} 6. h3 {[%clk 0:02:58.3]} 6... g6 {[%clk 0:02:51.9]}
7. Nf3 {[%clk 0:02:58]} 7... Bg7 {[%clk 0:02:47.5]} 8. Nbd2 {[%clk 0:02:57.7]}
8... O-O {[%clk 0:02:46.2]} 9. Be2 {[%clk 0:02:57.9]} 9... Ne4 {[%clk
0:02:36.6]} 10. O-O {[%clk 0:02:56.4]} 10... Bf5 {[%clk 0:02:27]} 11. Re1 {[%clk
0:02:55.6]} 11... Nxd2 {[%clk 0:02:23.9]} 12. Qxd2 {[%clk 0:02:38]} 12... a6
{[%clk 0:02:19.4]} 13. Bf1 {[%clk 0:02:37.8]} 13... b5 {[%clk 0:02:14.7]} 14. g4
{[%clk 0:02:37.3]} 14... Bd7 {[%clk 0:02:03.6]} 15. Bg2 {[%clk 0:02:29.6]} 15...
Rc8 {[%clk 0:01:57.1]} 16. Bh6 {[%clk 0:02:16.8]} 16... a5 {[%clk 0:01:38.6]}
17. Bxg7 {[%clk 0:02:05.3]} 17... Kxg7 {[%clk 0:01:37.9]} 18. Ne5 {[%clk
0:02:05.3]} 18... Nxe5 {[%clk 0:01:35.5]} 19. Rxe5 {[%clk 0:02:03.5]} 19... e6
{[%clk 0:01:35]} 20. Rae1 {[%clk 0:01:50.4]} 20... Qb6 {[%clk 0:01:28.4]} 21.
Rh5 {[%clk 0:01:32.1]} 21... Rh8 {[%clk 0:01:05.1]} 22. Qh6+ {[%clk 0:01:22.5]}
22... Kg8 {[%clk 0:01:01.1]} 23. Rhe5 {[%clk 0:01:00.8]} 23... b4 {[%clk
0:00:59.6]} 24. R5e3 {[%clk 0:00:36.5]} 24... bxc3 {[%clk 0:00:55.2]} 25. bxc3
{[%clk 0:00:34.9]} 25... a4 {[%clk 0:00:51.1]} 26. Rc1 {[%clk 0:00:24.2]} 26...
a3 {[%clk 0:00:48]} 27. Ree1 {[%clk 0:00:23.8]} 27... Qb2 {[%clk 0:00:42.2]} 28.
Rb1 {[%clk 0:00:22.6]} 28... Qxa2 {[%clk 0:00:38]} 29. Rb7 {[%clk 0:00:22.2]}
29... Bc6 {[%clk 0:00:32.4]} 30. Ra7 {[%clk 0:00:20.5]} 30... Qb2 {[%clk
0:00:29.1]} 31. Qf4 {[%clk 0:00:18.7]} 31... Be8 {[%clk 0:00:22]} 32. Bxd5
{[%clk 0:00:18.2]} 32... Qxc3 {[%clk 0:00:11.5]} 33. Re3 {[%clk 0:00:16.9]}
33... Qc1+ {[%clk 0:00:10.6]} 34. Kg2 {[%clk 0:00:15.9]} 34... Bc6 {[%clk
0:00:10.4]} 35. Bxc6 {[%clk 0:00:15.5]} 35... Qxc6+ {[%clk 0:00:09.4]} 36. Rf3
{[%clk 0:00:15.4]} 36... Rf8 {[%clk 0:00:02.9]} 37. Rxf7 {[%clk 0:00:14.4]}
37... Qxf3+ {[%clk 0:00:02.8]} 38. Qxf3 {[%clk 0:00:14.1]} 38... Rxf7 {[%clk
0:00:03.7]} 39. Qa8+ {[%clk 0:00:14.8]} 39... Kg7 {[%clk 0:00:03.8]} 40. Qxa3
{[%clk 0:00:15.3]} 40... Rd8 {[%clk 0:00:04.1]} 41. Qe3 {[%clk 0:00:15]} 41...
Rfd7 {[%clk 0:00:02.7]} 42. Qe5+ {[%clk 0:00:14.9]} 1-0

[Event "*** Titled Tuesday Blitz"]
[Site "Chess.com"]
[Date "2020.04.28"]
[Round "2"]
[White "djamir"]
[Black "ZEN-22"]
[Result "1-0"]
[WhiteElo "2736"]
[BlackElo "2496"]
[TimeControl "180+1"]
[EndTime "10:18:31 PDT"]
[Termination "djamir won by resignation"]

1. d4 {[%clk 0:03:00.5]} 1... c5 {[%clk 0:02:58.7]} 2. e3 {[%clk 0:02:58]} 2...
d5 {[%clk 0:02:56.2]} 3. Nf3 {[%clk 0:02:57.8]} 3... Nc6 {[%clk 0:02:56]} 4. c4
{[%clk 0:02:54]} 4... Nf6 {[%clk 0:02:38.6]} 5. Nc3 {[%clk 0:02:42.6]} 5... e6
{[%clk 0:02:27]} 6. a3 {[%clk 0:02:36.8]} 6... cxd4 {[%clk 0:02:22.8]} 7. Nxd4
{[%clk 0:02:36.7]} 7... Bc5 {[%clk 0:02:04.4]} 8. cxd5 {[%clk 0:02:25.9]} 8...
Nxd5 {[%clk 0:01:51.6]} 9. Nb3 {[%clk 0:02:23.6]} 9... Bb6 {[%clk 0:01:50.4]}
10. Nxd5 {[%clk 0:02:15.5]} 10... exd5 {[%clk 0:01:50.2]} 11. Bd3 {[%clk
0:02:04.6]} 11... O-O {[%clk 0:01:47.6]} 12. O-O {[%clk 0:02:04]} 12... Re8
{[%clk 0:01:38.6]} 13. Bd2 {[%clk 0:02:00.9]} 13... d4 {[%clk 0:01:35.1]} 14. e4
{[%clk 0:02:00.9]} 14... a5 {[%clk 0:01:17.5]} 15. Bf4 {[%clk 0:01:56.8]} 15...
a4 {[%clk 0:01:16.3]} 16. Nd2 {[%clk 0:01:56.8]} 16... Ne5 {[%clk 0:01:15.1]}
17. Bxe5 {[%clk 0:01:45.4]} 17... Rxe5 {[%clk 0:01:14.5]} 18. Rc1 {[%clk
0:01:45.3]} 18... Be6 {[%clk 0:01:02.2]} 19. Re1 {[%clk 0:01:43.8]} 19... g6
{[%clk 0:00:46.8]} 20. Nc4 {[%clk 0:01:11.7]} 20... Rc5 {[%clk 0:00:41.7]} 21.
Nxb6 {[%clk 0:00:56.3]} 21... Qxb6 {[%clk 0:00:37.9]} 22. Rxc5 {[%clk
0:00:55.1]} 22... Qxc5 {[%clk 0:00:36.5]} 23. Qd2 {[%clk 0:00:56]} 23... Rc8
{[%clk 0:00:31.7]} 24. f3 {[%clk 0:00:56]} 24... Bb3 {[%clk 0:00:30.2]} 25. g3
{[%clk 0:00:53.1]} 25... Qb6 {[%clk 0:00:19.6]} 26. Kg2 {[%clk 0:00:51.2]} 26...
Rc5 {[%clk 0:00:19.1]} 27. Rc1 {[%clk 0:00:49.4]} 27... Rxc1 {[%clk 0:00:17.9]}
28. Qxc1 {[%clk 0:00:50.3]} 28... Qd6 {[%clk 0:00:16.6]} 29. h4 {[%clk
0:00:48.6]} 29... b6 {[%clk 0:00:15.8]} 30. h5 {[%clk 0:00:47.8]} 30... Kg7
{[%clk 0:00:15.5]} 31. h6+ {[%clk 0:00:47.7]} 31... Kf8 {[%clk 0:00:13.1]} 32.
Qc8+ {[%clk 0:00:46.1]} 32... Ke7 {[%clk 0:00:13.2]} 33. f4 {[%clk 0:00:43.5]}
33... Be6 {[%clk 0:00:10.9]} 34. Qc2 {[%clk 0:00:38.8]} 34... Qc5 {[%clk
0:00:09.7]} 35. Qe2 {[%clk 0:00:35.7]} 35... Bb3 {[%clk 0:00:08.2]} 36. g4
{[%clk 0:00:33.6]} 36... f6 {[%clk 0:00:07.5]} 37. Qd2 {[%clk 0:00:32.8]} 37...
Qd6 {[%clk 0:00:07.4]} 38. Kg3 {[%clk 0:00:32.9]} 38... g5 {[%clk 0:00:07.8]}
39. Kf3 {[%clk 0:00:27]} 39... Be6 {[%clk 0:00:06.4]} 40. fxg5 {[%clk
0:00:25.2]} 40... Qe5 {[%clk 0:00:06.1]} 41. gxf6+ {[%clk 0:00:25.1]} 41... Kxf6
{[%clk 0:00:06.3]} 42. Qf4+ {[%clk 0:00:26]} 42... Qxf4+ {[%clk 0:00:05.9]} 43.
Kxf4 {[%clk 0:00:26.9]} 43... Kg6 {[%clk 0:00:06.4]} 44. g5 {[%clk 0:00:26.5]}
44... Kf7 {[%clk 0:00:06.7]} 45. Ke5 {[%clk 0:00:25.8]} 45... Bg4 {[%clk
0:00:04.6]} 46. Kf4 {[%clk 0:00:23.7]} 46... Bh5 {[%clk 0:00:04.1]} 47. Bc4+
{[%clk 0:00:20.3]} 47... Ke7 {[%clk 0:00:03.6]} 48. Ke5 {[%clk 0:00:20.7]} 48...
Bg6 {[%clk 0:00:04]} 49. Kxd4 {[%clk 0:00:20.9]} 49... Kd6 {[%clk 0:00:04.3]}
50. e5+ {[%clk 0:00:21.1]} 50... Kc6 {[%clk 0:00:04.2]} 51. Bd3 {[%clk
0:00:21.5]} 51... b5 {[%clk 0:00:05.1]} 52. Bxg6 {[%clk 0:00:21.3]} 1-0

[Event "*** Titled Tuesday Blitz"]
[Site "Chess.com"]
[Date "2020.04.28"]
[Round "2"]
[White "CalinGheorghiu"]
[Black "Doraemon7"]
[Result "1-0"]
[WhiteElo "2332"]
[BlackElo "2626"]
[TimeControl "180+1"]
[EndTime "10:18:31 PDT"]
[Termination "CalinGheorghiu won by resignation"]

1. d4 {[%clk 0:02:58.5]} 1... Nf6 {[%clk 0:02:58.7]} 2. c4 {[%clk 0:02:58.3]}
2... e6 {[%clk 0:02:58.6]} 3. Nc3 {[%clk 0:02:57.9]} 3... Bb4 {[%clk 0:02:59.1]}
4. f3 {[%clk 0:02:57.8]} 4... c5 {[%clk 0:02:50.4]} 5. d5 {[%clk 0:02:57.5]}
5... O-O {[%clk 0:02:47.3]} 6. e4 {[%clk 0:02:56.3]} 6... b5 {[%clk 0:02:32.7]}
7. e5 {[%clk 0:02:54.6]} 7... Ne8 {[%clk 0:02:31.5]} 8. f4 {[%clk 0:02:51.5]}
8... d6 {[%clk 0:02:22.1]} 9. Nf3 {[%clk 0:02:46.1]} 9... bxc4 {[%clk
0:02:10.3]} 10. Bxc4 {[%clk 0:02:44.6]} 10... dxe5 {[%clk 0:02:09.1]} 11. fxe5
{[%clk 0:02:38.2]} 11... Qb6 {[%clk 0:01:42]} 12. O-O {[%clk 0:02:27.9]} 12...
Bxc3 {[%clk 0:01:17.2]} 13. bxc3 {[%clk 0:02:26.6]} 13... exd5 {[%clk
0:01:18.1]} 14. Bxd5 {[%clk 0:02:23.3]} 14... Bb7 {[%clk 0:01:18.2]} 15. c4
{[%clk 0:02:20.4]} 15... Nc7 {[%clk 0:01:12.2]} 16. Ng5 {[%clk 0:02:07.6]} 16...
Nxd5 {[%clk 0:01:10.2]} 17. cxd5 {[%clk 0:02:03.9]} 17... Nd7 {[%clk 0:01:03.6]}
18. Qh5 {[%clk 0:00:41.5]} 18... Qg6 {[%clk 0:00:38.2]} 19. Qxg6 {[%clk
0:00:41.3]} 19... fxg6 {[%clk 0:00:34.8]} 20. Rxf8+ {[%clk 0:00:36.4]} 20...
Rxf8 {[%clk 0:00:33]} 21. e6 {[%clk 0:00:31.9]} 21... Nf6 {[%clk 0:00:26.8]} 22.
d6 {[%clk 0:00:30.2]} 22... Rd8 {[%clk 0:00:20.4]} 23. Bf4 {[%clk 0:00:25.1]}
23... h6 {[%clk 0:00:20.3]} 24. Nf7 {[%clk 0:00:25.1]} 24... Ra8 {[%clk
0:00:15.7]} 25. Rd1 {[%clk 0:00:20.6]} 25... Nd7 {[%clk 0:00:10.2]} 26. exd7
{[%clk 0:00:18.6]} 26... Kxf7 {[%clk 0:00:11.1]} 27. Re1 {[%clk 0:00:19]} 27...
Rd8 {[%clk 0:00:08.2]} 28. Re7+ {[%clk 0:00:18.5]} 28... Kf6 {[%clk 0:00:08.8]}
29. Bd2 {[%clk 0:00:17.4]} 29... Bc6 {[%clk 0:00:08.2]} 30. Bc3+ {[%clk
0:00:17.3]} 30... Kf5 {[%clk 0:00:08.8]} 31. Bxg7 {[%clk 0:00:11.2]} 31... Rxd7
{[%clk 0:00:09.7]} 32. Rxd7 {[%clk 0:00:09.9]} 32... Bxd7 {[%clk 0:00:10.6]} 33.
Bxh6 {[%clk 0:00:10.2]} 33... Ke4 {[%clk 0:00:10.9]} 34. Kf2 {[%clk 0:00:10.6]}
34... Kd3 {[%clk 0:00:11.3]} 35. Bg7 {[%clk 0:00:10.1]} 35... c4 {[%clk
0:00:11.2]} 36. Ke1 {[%clk 0:00:09.3]} 36... Kc2 {[%clk 0:00:10.8]} 37. h3
{[%clk 0:00:08.2]} 37... Bc6 {[%clk 0:00:09.1]} 38. g4 {[%clk 0:00:07.7]} 38...
Bd7 {[%clk 0:00:08.6]} 39. Kf2 {[%clk 0:00:04.4]} 39... a5 {[%clk 0:00:09]} 40.
Kg3 {[%clk 0:00:04.6]} 40... a4 {[%clk 0:00:07.2]} 41. h4 {[%clk 0:00:05]} 41...
Kd2 {[%clk 0:00:07.2]} 42. h5 {[%clk 0:00:05.3]} 42... gxh5 {[%clk 0:00:08.1]}
43. gxh5 {[%clk 0:00:05.4]} 43... c3 {[%clk 0:00:06.7]} 44. h6 {[%clk
0:00:05.7]} 44... c2 {[%clk 0:00:05.3]} 45. h7 {[%clk 0:00:06]} 45... c1=Q
{[%clk 0:00:04.9]} 46. Bh6+ {[%clk 0:00:06.5]} 46... Kc2 {[%clk 0:00:02.8]} 47.
Bxc1 {[%clk 0:00:07.4]} 1-0

[Event "*** Titled Tuesday Blitz"]
[Site "Chess.com"]
[Date "2020.04.28"]
[Round "2"]
[White "canhhuan"]
[Black "VALPARAISO37"]
[Result "1-0"]
[WhiteElo "2669"]
[BlackElo "2348"]
[TimeControl "180+1"]
[EndTime "10:18:31 PDT"]
[Termination "canhhuan won by resignation"]

1. e4 {[%clk 0:03:00.9]} 1... e5 {[%clk 0:02:21.5]} 2. Bc4 {[%clk 0:02:57.1]}
2... Nf6 {[%clk 0:02:20.7]} 3. d3 {[%clk 0:02:56.5]} 3... Bc5 {[%clk 0:02:19.7]}
4. Nc3 {[%clk 0:02:56]} 4... a6 {[%clk 0:02:18.9]} 5. f4 {[%clk 0:02:54.5]} 5...
d6 {[%clk 0:02:18.3]} 6. Nf3 {[%clk 0:02:54]} 6... Nc6 {[%clk 0:02:18.9]} 7. a3
{[%clk 0:02:43.4]} 7... b5 {[%clk 0:02:15.6]} 8. Ba2 {[%clk 0:02:42.5]} 8... b4
{[%clk 0:02:16.1]} 9. axb4 {[%clk 0:02:41.4]} 9... Bxb4 {[%clk 0:02:16.6]} 10.
O-O {[%clk 0:02:38.7]} 10... Bc5+ {[%clk 0:02:15.3]} 11. Kh1 {[%clk 0:02:37.1]}
11... Be6 {[%clk 0:02:11.7]} 12. fxe5 {[%clk 0:02:19.9]} 12... dxe5 {[%clk
0:02:10.8]} 13. Bg5 {[%clk 0:02:18.2]} 13... Bxa2 {[%clk 0:02:09.4]} 14. Rxa2
{[%clk 0:02:17.3]} 14... h6 {[%clk 0:02:10]} 15. Bxf6 {[%clk 0:02:04]} 15...
Qxf6 {[%clk 0:02:09.9]} 16. Nd5 {[%clk 0:01:59.4]} 16... Qd8 {[%clk 0:02:09.8]}
17. Qa1 {[%clk 0:01:56.4]} 17... a5 {[%clk 0:02:08.8]} 18. b4 {[%clk 0:01:43.5]}
18... Nxb4 {[%clk 0:01:58.7]} 19. Qxe5+ {[%clk 0:01:38.9]} 19... Kf8 {[%clk
0:01:59.4]} 20. Nxb4 {[%clk 0:01:24.1]} 20... Bd6 {[%clk 0:01:54.4]} 21. Nc6
{[%clk 0:01:18.4]} 21... Bxe5 {[%clk 0:01:53.8]} 22. Nxd8 {[%clk 0:01:17.2]}
22... Bc3 {[%clk 0:01:54.5]} 23. Nc6 {[%clk 0:01:11.9]} 23... Ra6 {[%clk
0:01:54.2]} 24. Nfd4 {[%clk 0:01:06.3]} 24... g6 {[%clk 0:01:49.1]} 25. Ra3
{[%clk 0:01:05]} 25... Bd2 {[%clk 0:01:47.7]} 26. Ne5 {[%clk 0:00:51.8]} 26...
Rh7 {[%clk 0:01:37.6]} 27. Rb3 {[%clk 0:00:48]} 27... Ke7 {[%clk 0:01:35.9]} 28.
Nec6+ {[%clk 0:00:43.4]} 28... Kf8 {[%clk 0:01:23.1]} 29. Rb8+ {[%clk
0:00:42.6]} 29... Kg7 {[%clk 0:01:22.6]} 30. e5 {[%clk 0:00:39.9]} 30... Bg5
{[%clk 0:01:19.4]} 31. e6 {[%clk 0:00:37.9]} 31... f5 {[%clk 0:01:15.1]} 32. e7
{[%clk 0:00:33.6]} 32... Bxe7 {[%clk 0:01:15.7]} 33. Nxe7 {[%clk 0:00:33.6]}
33... Kf6 {[%clk 0:01:16.4]} 34. Nec6 {[%clk 0:00:31.7]} 34... Rd7 {[%clk
0:01:14.2]} 35. h4 {[%clk 0:00:24.6]} 35... h5 {[%clk 0:01:13.5]} 36. Re1 {[%clk
0:00:23.7]} 36... Rd6 {[%clk 0:01:10.2]} 37. Rf8+ {[%clk 0:00:22.8]} 37... Kg7
{[%clk 0:01:10.1]} 38. Rc8 {[%clk 0:00:22.6]} 38... Rdxc6 {[%clk 0:01:08]} 39.
Nxc6 {[%clk 0:00:22.3]} 39... Rxc6 {[%clk 0:01:08.2]} 40. Re7+ {[%clk
0:00:22.7]} 40... Kf6 {[%clk 0:01:09]} 41. Rcxc7 {[%clk 0:00:22.5]} 41... Rb6
{[%clk 0:01:08.5]} 42. Rb7 {[%clk 0:00:21.8]} 42... Rc6 {[%clk 0:01:08.1]} 43.
Rec7 {[%clk 0:00:21.4]} 43... Rd6 {[%clk 0:01:07.9]} 44. Ra7 {[%clk 0:00:20.1]}
44... Rd5 {[%clk 0:01:05.2]} 45. Ra6+ {[%clk 0:00:19.1]} 45... Ke5 {[%clk
0:01:05.7]} 46. Rxg6 {[%clk 0:00:18.7]} 46... Kf4 {[%clk 0:01:05.9]} 47. Ra7
{[%clk 0:00:18.4]} 47... Rc5 {[%clk 0:01:04.6]} 48. Kh2 {[%clk 0:00:18.5]} 48...
Rxc2 {[%clk 0:01:04.5]} 49. Rxa5 {[%clk 0:00:18.1]} 49... Rd2 {[%clk 0:01:03.8]}
50. Rg5 {[%clk 0:00:18]} 50... Rxd3 {[%clk 0:01:03.8]} 51. Raxf5+ {[%clk
0:00:17.5]} 51... Ke4 {[%clk 0:01:04.5]} 52. Rxh5 {[%clk 0:00:17.6]} 52... Ra3
{[%clk 0:01:03.9]} 53. Rd5 {[%clk 0:00:17.5]} 53... Kf4 {[%clk 0:01:02.4]} 54.
Rhf5+ {[%clk 0:00:17.3]} 54... Kg4 {[%clk 0:01:02.8]} 55. Rfe5 {[%clk
0:00:15.1]} 55... Kf4 {[%clk 0:01:01.8]} 56. Rg5 {[%clk 0:00:14.3]} 56... Ra2
{[%clk 0:01:00.6]} 57. Rdf5+ {[%clk 0:00:13.6]} 57... Ke4 {[%clk 0:01:00.8]} 58.
h5 {[%clk 0:00:13.7]} 58... Rb2 {[%clk 0:01:00.6]} 59. h6 {[%clk 0:00:13.2]}
59... Rb6 {[%clk 0:01:01.2]} 60. Rh5 {[%clk 0:00:13.3]} 60... Rb7 {[%clk
0:00:58.9]} 61. h7 {[%clk 0:00:13]} 61... Rxh7 {[%clk 0:00:59.5]} 62. Rxh7
{[%clk 0:00:12.7]} 62... Kxf5 {[%clk 0:01:00.3]} 63. Kg3 {[%clk 0:00:12.6]}
63... Kg5 {[%clk 0:01:00.7]} 64. Rh4 {[%clk 0:00:12.2]} 64... Kf5 {[%clk
0:01:00.8]} 65. Rg4 {[%clk 0:00:12.3]} 65... Ke5 {[%clk 0:01:00.2]} 66. Kf3
{[%clk 0:00:12.8]} 66... Kf5 {[%clk 0:01:00.3]} 67. g3 {[%clk 0:00:13.4]} 67...
Ke5 {[%clk 0:01:00.6]} 68. Rg5+ {[%clk 0:00:13.2]} 1-0

[Event "*** Titled Tuesday Blitz"]
[Site "Chess.com"]
[Date "2020.04.28"]
[Round "2"]
[White "ega2006"]
[Black "politeplayer"]
[Result "1-0"]
[WhiteElo "2440"]
[BlackElo "2201"]
[TimeControl "180+1"]
[EndTime "10:18:32 PDT"]
[Termination "ega2006 won by resignation"]

1. e4 {[%clk 0:03:00.9]} 1... e6 {[%clk 0:02:59.1]} 2. d4 {[%clk 0:03:00]} 2...
d5 {[%clk 0:02:55.5]} 3. Nc3 {[%clk 0:03:00.1]} 3... dxe4 {[%clk 0:02:54.5]} 4.
Nxe4 {[%clk 0:02:59.8]} 4... Nd7 {[%clk 0:02:55.1]} 5. Nf3 {[%clk 0:02:59]} 5...
Ngf6 {[%clk 0:02:55.1]} 6. Bd3 {[%clk 0:02:59.4]} 6... Nxe4 {[%clk 0:02:54.1]}
7. Bxe4 {[%clk 0:03:00.3]} 7... Nf6 {[%clk 0:02:54.5]} 8. Bd3 {[%clk 0:03:00.9]}
8... c5 {[%clk 0:02:55]} 9. O-O {[%clk 0:02:56.1]} 9... cxd4 {[%clk 0:02:54.5]}
10. Nxd4 {[%clk 0:02:54.9]} 10... Bc5 {[%clk 0:02:53.9]} 11. Nb3 {[%clk
0:02:40.1]} 11... Bb6 {[%clk 0:02:51.6]} 12. Bg5 {[%clk 0:02:37.7]} 12... Bd7
{[%clk 0:02:46.6]} 13. Qf3 {[%clk 0:02:16.6]} 13... Bc6 {[%clk 0:02:44.8]} 14.
Qh3 {[%clk 0:02:17.1]} 14... h6 {[%clk 0:02:32]} 15. Rad1 {[%clk 0:02:08.9]}
15... Qc7 {[%clk 0:02:16.3]} 16. Rfe1 {[%clk 0:01:25.9]} 16... O-O-O {[%clk
0:02:12.5]} 17. Be3 {[%clk 0:01:24.9]} 17... Bxe3 {[%clk 0:01:56]} 18. Qxe3
{[%clk 0:01:25.8]} 18... Kb8 {[%clk 0:01:52.6]} 19. c3 {[%clk 0:01:07.8]} 19...
Rd5 {[%clk 0:01:45.4]} 20. Nd4 {[%clk 0:01:03.8]} 20... Rhd8 {[%clk 0:01:35.7]}
21. Bc4 {[%clk 0:00:51.7]} 21... Rh5 {[%clk 0:01:22.5]} 22. Qg3 {[%clk
0:00:37.1]} 22... e5 {[%clk 0:01:09.8]} 23. Nf3 {[%clk 0:00:19.2]} 23... Rxd1
{[%clk 0:00:23.7]} 24. Rxd1 {[%clk 0:00:20.1]} 24... Ne4 {[%clk 0:00:21.8]} 25.
Qxg7 {[%clk 0:00:16.4]} 25... a6 {[%clk 0:00:17.9]} 26. Qxf7 {[%clk 0:00:14.4]}
26... Qb6 {[%clk 0:00:15.1]} 27. Qxh5 {[%clk 0:00:11.6]} 27... Qxf2+ {[%clk
0:00:12.6]} 28. Kh1 {[%clk 0:00:11.8]} 28... Ng5 {[%clk 0:00:12.9]} 29. Rf1
{[%clk 0:00:08.8]} 29... Bxf3 {[%clk 0:00:08.5]} 30. Rxf2 {[%clk 0:00:08.3]}
30... Bxh5 {[%clk 0:00:07.5]} 31. Rf6 {[%clk 0:00:05.4]} 31... Ne4 {[%clk
0:00:05.3]} 32. Rxh6 {[%clk 0:00:04.4]} 32... Bd1 {[%clk 0:00:04.7]} 33. Re6
{[%clk 0:00:03.6]} 33... Nd2 {[%clk 0:00:02.6]} 34. Rxe5 {[%clk 0:00:03.2]}
34... Nxc4 {[%clk 0:00:01.7]} 35. Rd5 {[%clk 0:00:03.8]} 35... Ka7 {[%clk
0:00:02.3]} 36. Rxd1 {[%clk 0:00:03.6]} 36... Nxb2 {[%clk 0:00:02.9]} 37. Rf1
{[%clk 0:00:04]} 37... Nc4 {[%clk 0:00:03.4]} 38. Rf6 {[%clk 0:00:04.3]} 38...
a5 {[%clk 0:00:04.3]} 39. h4 {[%clk 0:00:04.7]} 39... a4 {[%clk 0:00:05.2]} 40.
h5 {[%clk 0:00:05.6]} 40... a3 {[%clk 0:00:06.1]} 41. h6 {[%clk 0:00:05.9]}
41... b5 {[%clk 0:00:07]} 42. h7 {[%clk 0:00:06.2]} 42... Ne5 {[%clk 0:00:07.9]}
43. h8=Q {[%clk 0:00:05.8]} 1-0